bitfinex-derivatives/quotes_ETHF0:USTF0_20250209
["timestamp","ask_amount","ask_price","bid_price","bid_amount"]
[1739138954062,0.00587913,2552.6,2552.0,3.2078]
[1739138954362,4.1327772,2552.3,2551.7,3.2078]
[1739138954564,4.1327772,2552.3,2552.0,3.2078]
[1739138954861,3.48759485,2552.5,2552.0,3.2078]
[1739138955159,0.00587913,2552.6,2552.0,3.2078]
[1739138955861,4.20729956,2552.5,2552.0,3.2078]
[1739138956262,0.00587913,2552.6,2552.0,3.2078]
[1739138956456,7.41509956,2552.5,2551.5,16.44973321]
[1739138956656,7.41509956,2552.5,2551.5,7.91043321]
[1739138956857,0.00587913,2552.6,2551.9,3.2078]
[1739138957560,0.00587913,2552.6,2551.9,7.91043321]
[1739138957761,0.00587913,2552.6,2552.5,3.2078]
[1739138958459,0.00587913,2552.6,2552.3,4.70263321]
[1739138958665,0.00587913,2552.6,2552.5,3.2078]
[1739138959259,0.00587913,2552.6,2552.5,0.78342]
[1739138959470,3.2078,2554.0,2552.5,6.0]
[1739138959760,4.31724375,2553.9,2553.4,3.2078]
[1739138960166,4.31724375,2553.9,2553.1,3.2078]
[1739138960666,3.21367913,2553.8,2553.2,0.00587913]
[1739138960869,3.2078,2553.5,2553.2,0.00587913]
[1739138961164,4.16298569,2553.4,2553.2,0.00587913]
[1739138961564,5.6593,2553.4,2552.5,3.2078]
[1739138961765,10.09530093,2553.4,2552.5,3.2078]
[1739138961967,10.09530093,2553.4,2552.8,3.2078]
[1739138962361,3.2078,2553.5,2553.1,3.2078]
[1739138962562,0.00587913,2553.8,2553.4,3.2078]
[1739138962766,0.00587913,2553.8,2553.0,4.70263321]
[1739138962970,4.2587683,2553.7,2553.2,3.2078]
[1739138963969,0.00587913,2553.8,2553.0,4.70851234]
[1739138963970,0.00587913,2553.8,2553.5,3.2078]
[1739138964973,0.00587913,2553.8,2553.2,3.2078]
[1739138965171,4.37586438,2553.7,2553.2,3.2078]
[1739138965373,0.00587913,2553.8,2553.2,3.2078]
[1739138965670,4.51836628,2553.7,2553.2,3.2078]
[1739138966672,0.00587913,2553.8,2553.5,3.2078]
[1739138967673,0.00587913,2553.8,2553.2,3.2078]
[1739138968071,4.11969097,2553.7,2553.2,3.2078]
[1739138968473,4.11969097,2553.7,2553.0,0.00587913]
[1739138969276,0.00587913,2553.8,2553.4,3.2078]
[1739138970075,3.2078,2553.5,2553.0,0.00587913]
[1739138970578,4.12580839,2553.4,2553.0,0.00587913]
[1739138970770,3.2078,2553.2,2553.0,0.00587913]
[1739138971077,3.2078,2553.2,2552.0,3.2078]
[1739138971266,3.2078,2552.2,2551.6,3.2078]
[1739138971470,3.2078,2552.2,2551.3,4.6341]
[1739138971681,4.09029067,2552.1,2551.3,4.6341]
[1739138972074,3.2078,2551.9,2550.8,3.2078]
[1739138972376,4.09029067,2552.1,2550.9,3.2078]
[1739138972377,0.00587913,2552.0,2550.9,3.2078]
[1739138972572,7.29809067,2551.8,2551.2,3.2078]
[1739138972774,3.2078,2551.7,2550.8,3.2078]
[1739138972968,3.2078,2551.7,2551.2,3.2078]
[1739138972969,4.2036537,2551.7,2551.2,3.2078]
[1739138973175,4.2036537,2551.7,2551.6,3.2078]
[1739138973379,0.00587913,2552.0,2551.6,3.2078]
[1739138973579,3.2078,2553.1,2551.9,3.2078]
[1739138973783,3.2078,2553.1,2552.3,3.2078]
[1739138974078,4.52650382,2553.0,2552.7,3.2078]
[1739138974283,9.2165,2554.0,2552.7,3.2078]
[1739138974574,9.2165,2554.0,2553.0,3.2078]
[1739138974777,3.72204702,2553.9,2553.5,3.2078]
[1739138974976,0.00587913,2553.6,2553.5,3.2078]
[1739138975874,0.00587913,2553.6,2553.3,3.2078]
[1739138977377,0.78319,2553.3,2552.0,3.2078]
[1739138977677,3.2078,2552.6,2551.8,7.91043321]
[1739138977879,3.2078,2552.9,2551.9,3.2078]
[1739138978085,3.2078,2552.9,2551.8,4.70263321]
[1739138978385,3.2078,2552.6,2551.8,4.70263321]
[1739138978876,4.09316234,2552.5,2551.6,3.2078]
[1739138979272,4.09316234,2552.5,2551.4,4.70263321]
[1739138979273,4.09316234,2552.5,2551.9,3.2078]
[1739138979475,0.00587913,2552.3,2552.2,4.70263321]
[1739138979677,0.00587913,2552.3,2552.2,7.91043321]
[1739138979876,3.2078,2553.2,2552.2,13.91043321]
[1739138980078,3.2078,2553.6,2552.6,7.91043321]
[1739138980274,6.1815,2553.8,2552.6,7.91043321]
[1739138980481,10.5341703,2553.8,2552.8,3.2078]
[1739138980685,6.1815,2553.8,2553.1,3.2078]
[1739138981186,0.00587913,2553.7,2553.2,0.00587913]
[1739138981775,7.46881262,2553.6,2553.2,0.00587913]
[1739138982087,4.26101262,2553.6,2553.2,0.00587913]
[1739138982484,3.2078,2553.4,2553.2,0.00587913]
[1739138983283,4.27413021,2553.3,2552.2,4.70263321]
[1739138983488,3.2078,2552.9,2552.1,3.2078]
[1739138983786,2.843,2553.4,2551.8,23.35263321]
[1739138983787,3.2078,2552.8,2551.8,26.56043321]
[1739138983972,3.2078,2552.5,2551.8,26.56043321]
[1739138984171,7.46387734,2553.2,2552.2,4.70263321]
[1739138984376,0.00587913,2552.4,2552.2,4.70263321]
[1739138984681,0.00587913,2552.4,2552.3,3.2078]
[1739138984881,2.843,2553.4,2552.3,3.2078]
[1739138985283,4.43829502,2553.3,2552.4,0.78344]
[1739138985585,3.2078,2553.6,2552.6,7.91043321]
[1739138985779,3.2078,2553.6,2553.2,3.2078]
[1739138985979,3.2078,2554.6,2553.5,3.2078]
[1739138986180,0.00587913,2553.7,2553.5,3.2078]
[1739138987484,0.00587913,2553.7,2553.5,9.2078]
[1739138988184,3.2078,2554.7,2553.5,9.2078]
[1739138988488,3.2078,2554.7,2554.2,3.2078]
[1739138988988,6.2031,2555.3,2554.3,3.2078]
[1739138989284,4.47374166,2555.2,2554.3,3.2078]
[1739138989490,3.2078,2554.9,2554.5,0.00587913]
[1739138989984,0.00587913,2555.1,2554.5,0.00587913]
[1739138990185,3.2078,2554.7,2554.5,0.00587913]
[1739138990386,3.2078,2554.7,2553.7,3.2078]
[1739138990687,3.2078,2554.7,2553.2,0.31719991]
[1739138990688,3.2078,2554.3,2553.2,4.70263321]
[1739138990885,5.7923,2554.2,2553.2,4.70263321]
[1739138991087,9.93075531,2554.2,2553.7,3.2078]
[1739138991284,3.2078,2554.9,2553.7,3.2078]
[1739138991683,4.09071334,2554.6,2554.0,0.00587913]
[1739138991884,7.29851334,2554.8,2554.0,7.91631234]
[1739138992089,3.2078,2554.8,2554.0,7.91631234]
[1739138992284,5.7923,2555.0,2554.7,3.2078]
[1739138992884,4.07323868,2554.9,2554.7,3.2078]
[1739138993189,5.7923,2555.0,2554.2,3.2078]
[1739138993685,7.28103868,2554.9,2554.2,3.2078]
[1739138994283,3.2078,2554.9,2554.2,3.2078]
[1739138994583,4.2241898,2554.8,2554.3,3.2078]
[1739138994783,0.00587913,2555.1,2554.6,3.2078]
[1739138996186,0.00587913,2555.1,2554.4,4.70263321]
[1739138996387,0.00587913,2555.1,2554.8,7.91043321]
[1739138996796,0.00587913,2555.1,2554.8,3.2078]
[1739138997089,0.00587913,2555.1,2554.8,7.91043321]
[1739138997293,0.00587913,2555.1,2554.8,8.69313321]
[1739138997590,0.00587913,2555.1,2554.8,7.91043321]
[1739138997791,0.00587913,2555.1,2554.5,0.7828]
[1739138997792,0.00587913,2555.1,2554.5,3.2078]
[1739138997989,0.00587913,2555.1,2554.8,3.2078]
[1739138998391,0.00587913,2555.1,2554.8,7.91043321]
[1739138998693,3.2078,2556.5,2554.8,10.74943321]
[1739138998887,3.2078,2556.5,2555.4,3.2078]
[1739138999185,7.34648176,2556.5,2555.4,3.2078]
[1739138999694,7.34648176,2556.5,2555.3,4.70263321]
[1739138999695,7.34648176,2556.5,2555.3,7.91043321]
[1739138999989,0.00587913,2556.2,2555.7,0.00587913]
[1739139000491,4.09043183,2556.1,2555.7,0.00587913]
[1739139000790,0.00587913,2556.2,2555.7,0.00587913]
[1739139000988,3.2078,2555.9,2555.7,0.00587913]
[1739139001587,4.37782537,2555.8,2555.7,0.00587913]
[1739139002487,5.654,2556.0,2555.7,0.00587913]
[1739139003295,0.00587913,2556.2,2555.7,0.00587913]
[1739139003697,3.2078,2555.8,2555.7,0.00587913]
[1739139004189,4.24387175,2555.8,2555.7,0.00587913]
[1739139004386,3.2078,2556.1,2555.7,0.00587913]
[1739139004583,0.00587913,2556.2,2555.7,0.00587913]
[1739139004984,3.2078,2555.8,2555.7,0.00587913]
[1739139005492,13.40417253,2555.8,2554.6,3.2078]
[1739139005795,3.2078,2555.1,2554.1,7.91043321]
[1739139006001,4.19637253,2555.8,2554.1,3.2078]
[1739139006002,3.2078,2554.7,2554.1,3.2078]
[1739139006292,4.50192507,2554.6,2554.1,3.2078]
[1739139006797,4.5078042,2554.6,2554.1,3.21367913]
[1739139007291,3.2078,2554.4,2553.3,4.70263321]
[1739139007487,3.2078,2554.4,2553.3,7.91043321]
[1739139007687,3.2078,2554.4,2553.7,4.70263321]
[1739139007888,5.85807913,2554.6,2553.7,4.70263321]
[1739139007889,0.00587913,2554.6,2553.7,4.70263321]
[1739139008090,3.21367913,2554.6,2553.9,3.2078]
[1739139008292,0.00587913,2554.6,2553.9,3.2078]
[1739139008699,0.00587913,2554.6,2553.7,4.70263321]
[1739139008700,7.4750377,2554.5,2553.7,4.70263321]
[1739139009494,3.2078,2554.1,2553.7,4.70263321]
[1739139009997,3.2078,2554.4,2553.7,4.70263321]
[1739139010595,3.2078,2555.1,2554.1,4.70263321]
[1739139010904,4.49244961,2555.1,2554.6,4.70263321]
[1739139011393,3.2078,2556.1,2555.1,0.78261]
[1739139011592,3.2078,2556.4,2555.4,7.91043321]
[1739139011799,4.18431023,2556.4,2555.9,3.2078]
[1739139012005,5.6738,2556.6,2555.9,3.2078]
[1739139012294,0.00587913,2556.4,2556.2,3.2078]
[1739139012893,0.00587913,2556.4,2556.2,7.91043321]
[1739139013993,5.6738,2557.4,2556.2,7.91043321]
[1739139014194,8.8816,2557.4,2556.2,4.70263321]
[1739139014401,3.2078,2557.0,2556.2,4.70263321]
[1739139014595,5.6738,2557.4,2556.2,4.70263321]
[1739139014596,5.6738,2557.4,2556.5,3.2078]
[1739139014902,4.37446795,2557.3,2556.5,3.2078]
[1739139015095,4.37446795,2557.3,2556.2,4.70263321]
[1739139015096,0.0058674,2557.2,2556.7,0.0058674]
[1739139017500,3.2136674,2557.2,2556.7,0.0058674]
[1739139018602,3.2078,2556.9,2556.7,0.0058674]
[1739139018806,3.2078,2556.9,2555.8,4.70263321]
[1739139019004,3.2078,2556.0,2555.3,7.91043321]
[1739139019198,3.2078,2556.0,2555.3,4.70263321]
[1739139019513,3.2078,2556.5,2555.7,4.70263321]
[1739139019801,3.2078,2556.9,2555.9,3.2078]
[1739139020105,3.2078,2556.5,2555.9,3.2078]
[1739139020300,4.09399982,2556.9,2556.1,4.70263321]
[1739139020509,0.00385804,2557.0,2556.5,7.91043321]
[1739139020800,0.0058674,2557.2,2556.9,4.70263321]
[1739139021001,0.0058674,2557.2,2557.1,3.2078]
[1739139021208,0.0058674,2557.2,2556.9,4.70263321]
[1739139023504,0.0058674,2557.2,2556.5,7.91043321]
[1739139024511,3.2078,2556.9,2556.1,4.70263321]
[1739139024702,3.2078,2556.9,2556.1,7.91043321]
[1739139025006,0.0058674,2557.2,2556.1,4.70263321]
[1739139025007,3.2078,2557.0,2556.1,4.70263321]
[1739139025302,3.2078,2557.0,2555.8,3.21365177]
[1739139025303,3.2078,2556.8,2555.8,0.00585177]
[1739139025508,3.2078,2556.8,2556.1,4.70263321]
[1739139025804,4.35987546,2557.0,2556.4,3.2078]
[1739139026003,0.0058674,2557.2,2556.5,4.70263321]
[1739139026707,0.0058674,2557.2,2556.5,7.91043321]
[1739139027018,0.0058674,2557.2,2556.8,3.2078]
[1739139027207,0.0058674,2557.2,2557.1,3.2078]
[1739139028007,3.2078,2558.0,2557.1,3.2078]
[1739139028008,3.2078,2558.0,2557.1,9.2078]
[1739139028212,3.2078,2559.0,2557.9,3.2078]
[1739139028507,7.53938113,2559.5,2558.6,4.70263321]
[1739139028804,3.2078,2559.5,2558.6,4.70263321]
[1739139029002,16.8947,2560.1,2558.2,4.70263321]
[1739139029003,3.2078,2558.9,2558.2,4.70263321]
[1739139029308,3.2078,2559.2,2558.8,0.0058674]
[1739139029606,0.0058674,2559.3,2558.8,0.0058674]
[1739139029798,0.0058674,2559.3,2558.8,3.2136674]
[1739139030004,4.16609958,2559.2,2558.8,0.0058674]
[1739139030510,3.2078,2559.1,2558.8,0.0058674]
[1739139031109,4.36052711,2559.0,2558.8,0.0058674]
[1739139031412,3.2078,2559.1,2558.8,0.0058674]
[1739139032111,0.0058674,2559.3,2558.8,0.0058674]
[1739139032703,4.4054871,2559.2,2558.8,0.0058674]
[1739139033103,3.2078,2559.0,2557.4,4.70263321]
[1739139033312,3.2078,2558.6,2557.6,3.2078]
[1739139033805,4.20754192,2558.5,2557.8,4.70263321]
[1739139034005,4.20754192,2558.5,2557.4,4.70263321]
[1739139034206,7.41534192,2558.5,2557.9,0.00585177]
[1739139034520,3.2078,2558.4,2557.9,0.00585177]
[1739139034705,3.2078,2558.0,2557.9,0.00585177]
[1739139035104,7.37617188,2558.0,2557.9,0.00585177]
[1739139035510,3.2078,2558.0,2557.9,0.00585177]
[1739139036416,3.2078,2558.2,2557.9,0.00585177]
[1739139036710,10.9437,2559.1,2557.9,3.21365177]
[1739139036711,3.2078,2558.8,2557.9,3.21365177]
[1739139036918,3.2078,2558.8,2558.4,4.70263321]
[1739139037209,3.2078,2559.5,2558.5,3.2078]
[1739139037412,5.7037,2559.9,2558.5,3.2078]
[1739139037413,3.2078,2559.8,2558.5,3.2078]
[1739139037713,3.2078,2559.5,2558.5,3.2078]
[1739139038419,3.2078,2558.8,2558.1,6.0368]
[1739139038717,3.2078,2559.1,2558.1,6.0368]
[1739139038909,3.2078,2558.7,2558.1,3.2078]
[1739139039105,4.49157898,2559.0,2558.1,3.2078]
[1739139039311,3.2078,2559.1,2558.1,3.2078]
[1739139039815,3.2078,2559.1,2558.4,4.70263321]
[1739139040211,4.42176109,2559.0,2558.4,4.70263321]
[1739139041017,3.2078,2558.8,2558.1,3.2078]
[1739139041317,3.2078,2558.6,2558.1,3.2078]
[1739139041517,3.2078,2558.7,2558.1,3.2078]
[1739139041908,5.8066,2559.2,2558.1,3.2078]
[1739139041909,3.2078,2558.6,2558.1,3.2078]
[1739139042311,3.2078,2559.0,2558.1,3.2078]
[1739139042511,3.2078,2558.4,2557.9,0.00585177]
[1739139042708,3.2078,2558.1,2557.9,0.00585177]
[1739139043313,4.21799858,2558.0,2557.9,0.00585177]
[1739139043717,10.21799858,2558.0,2556.8,7.91043321]
[1739139043921,3.2078,2557.8,2556.8,7.91043321]
[1739139044112,3.2078,2557.5,2556.8,7.91043321]
[1739139044315,4.16375241,2557.7,2556.8,7.91043321]
[1739139044509,3.2078,2557.5,2556.8,7.91043321]
[1739139044824,4.24179224,2557.4,2556.8,4.70263321]
[1739139045117,4.24765964,2557.4,2556.8,4.70263321]
[1739139045316,3.2078,2557.8,2557.2,4.70263321]
[1739139045615,3.2078,2558.8,2557.7,4.70263321]
[1739139045820,3.2078,2559.1,2558.1,7.91043321]
[1739139046014,7.54961299,2559.1,2558.1,7.91043321]
[1739139046213,3.2078,2559.1,2558.1,7.91043321]
[1739139046420,3.2078,2559.1,2558.1,4.70263321]
[1739139046721,0.0058674,2558.9,2558.3,0.0058674]
[1739139047113,0.0058674,2558.9,2558.3,3.2136674]
[1739139047416,0.0058674,2558.9,2558.5,4.70263321]
[1739139047612,0.0058674,2558.9,2558.6,3.2078]
[1739139049221,0.0058674,2558.9,2558.5,4.70263321]
[1739139050222,0.0058674,2558.9,2558.3,8.8854674]
[1739139050223,3.2136674,2558.9,2558.3,3.2136674]
[1739139050425,0.0058674,2558.9,2558.5,4.70263321]
[1739139050720,0.0058674,2558.9,2558.3,3.2136674]
[1739139051221,0.0058674,2558.9,2558.6,3.2078]
[1739139051916,0.0058674,2558.9,2558.6,9.2078]
[1739139052121,1.563e-05,2558.9,2558.6,9.2078]
[1739139052321,1.563e-05,2558.9,2558.6,14.8982]
[1739139052527,1.563e-05,2558.9,2558.6,8.8982]
[1739139052719,1.563e-05,2558.9,2558.6,3.2078]
[1739139053514,1.563e-05,2558.9,2558.5,4.70263321]
[1739139055421,1.563e-05,2558.9,2558.6,3.2078]
[1739139055728,3.2078,2559.8,2558.6,3.2078]
[1739139055921,3.2078,2559.8,2559.0,3.2078]
[1739139056223,4.15602511,2559.7,2558.9,4.70263321]
[1739139056419,3.2078,2559.5,2558.9,4.70263321]
[1739139056917,3.2136674,2559.5,2558.9,4.70263321]
[1739139057321,3.2078,2559.1,2558.5,4.70263321]
[1739139057513,3.2078,2559.1,2558.3,0.32423553]
[1739139057514,3.2078,2559.1,2558.3,0.0058674]
[1739139058923,4.42671123,2559.0,2558.3,0.0058674]
[1739139060024,3.2078,2558.8,2558.3,0.0058674]
[1739139060216,3.2078,2558.5,2558.3,0.0058674]
[1739139060821,4.25060563,2558.4,2558.3,0.0058674]
[1739139061022,9.91560563,2558.4,2557.7,4.70263321]
[1739139061319,3.2078,2558.8,2558.1,5.48433321]
[1739139061521,3.2078,2559.3,2558.1,8.69213321]
[1739139061715,4.25060563,2559.2,2558.1,7.91043321]
[1739139061921,3.2078,2559.3,2558.1,7.91043321]
[1739139062125,0.0058674,2558.9,2558.4,0.0058674]
[1739139062524,4.1392465,2558.8,2558.4,0.0058674]
[1739139062727,3.2078,2558.7,2558.4,0.0058674]
[1739139062927,0.0058674,2558.9,2558.5,4.70263321]
[1739139063224,14.21695096,2559.7,2558.5,5.48419321]
[1739139063425,14.21695096,2559.7,2558.5,4.70263321]
[1739139063426,13.755,2559.7,2558.5,4.70263321]
[1739139063628,4.13223025,2559.4,2558.5,4.70263321]
[1739139063831,4.13223025,2559.6,2558.5,4.70263321]
[1739139064027,3.2078,2559.2,2558.5,4.70263321]
[1739139065925,0.0058674,2559.4,2558.7,3.2078]
[1739139066726,0.0058674,2559.4,2559.0,3.2078]
[1739139067922,0.0058674,2559.4,2558.9,4.70263321]
[1739139068728,0.0058674,2559.4,2558.6,3.2078]
[1739139069045,0.0058674,2559.4,2558.4,4.70850061]
[1739139069046,3.2078,2559.1,2558.4,4.70850061]
[1739139069429,4.13527709,2559.0,2558.4,4.70850061]
[1739139070936,3.2078,2558.8,2558.4,4.70850061]
[1739139071434,3.2078,2558.5,2558.4,0.0058674]
[1739139071831,7.29029768,2558.5,2557.6,4.70263321]
[1739139072433,3.2078,2558.5,2558.0,4.70263321]
[1739139072633,8.6129,2558.7,2557.6,9.37743321]
[1739139072634,3.2078,2558.2,2557.6,9.37743321]
[1739139072835,4.33576853,2558.4,2557.6,9.37743321]
[1739139073033,3.2078,2558.5,2557.6,9.38330061]
[1739139073334,3.2078,2558.5,2558.0,4.70263321]
[1739139073728,5.7919,2558.7,2558.0,4.70263321]
[1739139074234,3.2078,2558.4,2557.8,3.2078]
[1739139074437,3.2078,2558.4,2557.6,9.38330061]
[1739139074438,3.2078,2558.1,2557.6,4.70850061]
[1739139074833,3.2078,2557.7,2557.6,0.0058674]
[1739139075743,7.34311702,2557.7,2556.8,4.70263321]
[1739139076041,3.2078,2557.3,2556.8,4.70263321]
[1739139076243,3.2078,2557.3,2556.5,0.31433857]
[1739139076433,3.2078,2557.3,2556.6,3.2078]
[1739139076634,6.83906,2558.0,2556.4,4.70263321]
[1739139076635,6.0573,2558.0,2557.2,4.70263321]
[1739139076842,3.2136674,2558.1,2557.6,4.70263321]
[1739139077041,6.1473,2558.4,2557.6,4.70263321]
[1739139077042,9.3551,2558.4,2557.6,4.70263321]
[1739139077243,6.1473,2558.4,2558.0,4.70263321]
[1739139077537,3.2078,2558.7,2558.0,4.70263321]
[1739139077838,2.821,2559.0,2557.6,4.91437053]
[1739139077839,3.2078,2558.4,2557.6,9.30313321]
[1739139078040,7.2933504,2558.5,2557.6,9.30313321]
[1739139078238,3.2078,2558.5,2558.0,4.70263321]
[1739139078539,0.0058674,2558.3,2558.0,4.70263321]
[1739139078740,3.2136674,2558.3,2558.0,4.70263321]
[1739139079638,0.0058674,2558.3,2558.0,4.70263321]
[1739139080136,3.2078,2558.9,2558.1,3.2078]
[1739139080341,3.2078,2558.9,2558.4,4.70263321]
[1739139080932,3.2078,2558.9,2558.8,4.70263321]
[1739139081138,0.0058674,2558.9,2558.8,7.91043321]
[1739139082042,0.0058674,2558.9,2558.8,4.70263321]
[1739139083846,0.0058674,2558.9,2558.8,7.91043321]
[1739139085140,0.0058674,2558.9,2558.8,4.70263321]
[1739139086237,0.0058674,2558.9,2558.0,2.819]
[1739139086238,0.0058674,2558.9,2558.3,7.91043321]
[1739139086644,0.0058674,2558.9,2558.6,3.2078]
[1739139086846,0.0058674,2558.9,2558.3,7.91043321]
[1739139087440,0.0058674,2558.9,2558.3,4.70263321]
[1739139088147,0.0058674,2558.9,2558.3,7.91043321]
[1739139088348,3.2078,2559.6,2558.8,0.78147]
[1739139088541,3.2078,2560.0,2559.2,3.2078]
[1739139088738,7.52535385,2560.0,2559.1,4.70263321]
[1739139088943,3.2078,2560.0,2559.1,4.70263321]
[1739139089147,3.2078,2560.0,2559.3,3.2078]
[1739139089449,3.2078,2560.7,2559.9,7.91043321]
[1739139089645,3.2078,2560.7,2560.1,3.2078]
[1739139089839,0.0058674,2560.6,2560.1,3.2078]
[1739139090239,3.2078,2560.4,2559.9,4.70263321]
[1739139090444,0.0058674,2560.6,2559.9,4.70263321]
[1739139090946,21.97143502,2562.2,2559.9,4.70263321]
[1739139090947,3.2078,2561.2,2560.4,3.2078]
[1739139091148,20.47660181,2562.2,2561.3,4.70263321]
[1739139091745,3.2078,2562.2,2561.3,4.70263321]
[1739139091947,3.2078,2562.2,2561.7,4.70263321]
[1739139092247,0.46121158,2563.6,2561.4,3.2078]
[1739139092248,17.26880181,2563.8,2562.3,3.2078]
[1739139092449,17.26880181,2563.8,2563.6,4.70263321]
[1739139092750,14.09903838,2563.8,2563.6,7.91043321]
[1739139092947,6.29475009,2563.8,2563.6,7.91043321]
[1739139093146,2.99009523,2563.8,2563.6,7.90701111]
[1739139093754,0.37220464,2563.8,2563.6,13.90701111]
[1739139094046,20.21462218,2565.3,2563.6,13.90701111]
[1739139094249,18.03959788,2564.5,2564.0,4.70263321]
[1739139094449,18.03959788,2564.5,2563.9,3.2078]
[1739139094450,4.36120679,2564.4,2563.6,4.70263321]
[1739139094645,4.36120679,2564.4,2563.7,3.2078]
[1739139094854,3.2078,2564.9,2563.7,3.2078]
[1739139095048,3.2078,2564.9,2564.0,3.2078]
[1739139095355,0.00585537,2564.3,2563.6,4.70263321]
[1739139095654,0.00585537,2564.3,2564.0,4.70263321]
[1739139095850,0.00585537,2564.3,2564.1,3.2078]
[1739139096254,0.00585537,2564.3,2564.1,9.2078]
[1739139096654,3.2078,2565.8,2564.1,9.2078]
[1739139096850,8.9779,2566.2,2565.4,4.70263321]
[1739139097060,8.9779,2566.2,2565.6,3.2078]
[1739139097352,8.9779,2566.2,2565.4,4.70263321]
[1739139097556,5.7701,2566.2,2565.4,4.70263321]
[1739139097854,5.7701,2566.2,2565.5,0.00585537]
[1739139098060,5.7701,2566.2,2565.1,3.2078]
[1739139098061,3.2078,2565.6,2565.1,3.2078]
[1739139098253,3.2078,2565.6,2564.4,3.2078]
[1739139098459,13.16601781,2565.5,2564.4,3.2078]
[1739139098755,3.2078,2565.2,2564.3,3.2078]
[1739139099261,3.2078,2565.2,2564.6,7.91043321]
[1739139099758,5.7235,2565.5,2565.1,3.2078]
[1739139099959,0.00585537,2565.2,2564.7,3.2078]
[1739139100456,3.2078,2567.1,2565.5,3.2078]
[1739139100660,3.2078,2567.1,2566.6,4.70263321]
[1739139100854,11.8827,2568.1,2566.1,3.2078]
[1739139100855,3.2078,2566.8,2566.1,3.2078]
[1739139101055,5.8664,2567.0,2566.2,4.70263321]
[1739139101365,5.8664,2567.0,2566.4,3.2078]
[1739139101659,0.00385678,2566.9,2566.6,7.91043321]
[1739139101857,0.00385678,2566.9,2566.8,3.2078]
[1739139102053,0.00385678,2566.9,2566.3,3.21364374]
[1739139102253,0.00385678,2566.9,2566.3,0.00584374]
[1739139102452,0.00385678,2566.9,2566.3,3.21364374]
[1739139102659,0.00385678,2566.9,2566.3,0.00584374]
[1739139103360,0.00385678,2566.9,2566.3,3.21364374]
[1739139103667,0.00774512,2567.8,2566.6,7.91043321]
[1739139103958,0.00774512,2567.8,2567.3,3.2078]
[1739139104465,3.2078,2567.6,2566.7,4.70263321]
[1739139104861,4.3057696,2567.5,2566.7,4.70263321]
[1739139105054,3.2078,2567.6,2566.7,4.70263321]
[1739139105359,6.14094512,2567.8,2567.1,4.70263321]
[1739139106060,3.2078,2567.6,2566.7,4.70263321]
[1739139106562,2.21199084,2567.5,2566.9,3.2078]
[1739139106862,3.2078,2569.4,2567.6,0.7788]
[1739139107068,10.5769,2570.0,2568.9,3.2078]
[1739139107362,4.3506584,2569.9,2569.7,4.70263321]
[1739139107759,5.9816,2570.0,2569.7,4.70263321]
[1739139108366,3.2078,2570.1,2569.7,4.70263321]
[1739139108759,3.2078,2569.8,2569.7,4.70263321]
[1739139109063,5.8214,2570.4,2569.7,4.70263321]
[1739139109367,3.2078,2570.5,2570.3,4.70263321]
[1739139109560,3.2078,2570.8,2570.3,4.70263321]
[1739139110165,3.2078,2570.5,2570.3,4.70263321]
[1739139110459,3.2078,2571.6,2570.4,3.2078]
[1739139110656,3.2078,2571.6,2571.4,4.70263321]
[1739139110859,9.1567,2572.2,2571.5,3.2078]
[1739139111058,9.1567,2572.2,2571.8,4.70263321]
[1739139111261,3.2078,2572.8,2571.8,4.70263321]
[1739139111464,3.2078,2572.8,2572.2,7.91043321]
[1739139111765,7.33130116,2572.8,2572.6,4.70263321]
[1739139111970,3.2078,2572.8,2572.3,3.2078]
[1739139112262,3.2078,2572.9,2572.3,3.2078]
[1739139112567,3.2078,2572.6,2572.2,0.00583238]
[1739139112963,3.2078,2572.6,2571.6,3.2078]
[1739139112964,3.2078,2572.3,2571.6,3.2078]
[1739139113167,3.2078,2572.0,2571.4,4.70263321]
[1739139113667,2.804,2572.2,2571.8,4.70263321]
[1739139113865,3.2078,2572.4,2571.8,4.70263321]
[1739139114063,3.2078,2572.4,2571.9,3.2078]
[1739139114264,0.00579451,2572.4,2571.8,4.70846559]
[1739139114464,0.00579451,2572.4,2572.2,4.70263321]
[1739139114859,6.0068,2573.8,2572.2,10.70263321]
[1739139115059,9.2146,2573.8,2573.2,3.2078]
[1739139115263,4.10398552,2573.7,2573.0,3.2078]
[1739139115762,3.2078,2573.2,2572.5,4.70263321]
[1739139115963,2.802,2573.1,2572.3,3.2078]
[1739139116163,4.1207105,2573.1,2572.6,0.00583238]
[1739139116357,3.2078,2572.8,2572.6,0.00583238]
[1739139116567,7.3285105,2573.1,2572.6,0.00583238]
[1739139116766,4.1207105,2572.7,2572.6,0.00583238]
[1739139117074,3.2078,2573.1,2572.6,0.00583238]
[1739139117075,4.1207105,2573.0,2572.6,0.00583238]
[1739139117263,3.2078,2573.1,2572.6,0.00583238]
[1739139117767,2.802,2573.7,2572.6,0.00583238]
[1739139117768,4.20947039,2573.0,2572.9,4.70263321]
[1739139117962,3.2078,2573.4,2572.9,4.70263321]
[1739139118161,4.27486141,2573.5,2573.1,3.2078]
[1739139118364,4.27486141,2573.7,2573.3,4.70263321]
[1739139118674,3.2078,2574.1,2573.3,4.70263321]
[1739139118969,14.0158,2574.5,2573.3,4.70263321]
[1739139118970,3.2078,2573.9,2573.3,4.70263321]
[1739139119265,3.2078,2573.9,2572.9,4.70263321]
[1739139119571,3.2078,2573.3,2572.6,0.00583238]
[1739139119961,3.2078,2573.0,2572.6,0.00583238]
[1739139120365,3.2078,2572.7,2572.6,0.00583238]
[1739139120660,10.06057302,2572.7,2571.4,3.2078]
[1739139120858,3.2078,2572.2,2571.3,7.91043321]
[1739139121261,0.77757,2571.7,2570.9,4.70263321]
[1739139121467,3.2078,2571.7,2570.5,4.70263321]
[1739139121660,4.22954732,2571.6,2570.5,4.70263321]
[1739139121870,0.00583238,2571.4,2570.8,0.00583238]
[1739139122169,4.34934711,2571.3,2570.8,3.21363238]
[1739139122365,3.2078,2571.1,2570.8,0.00583238]
[1739139122560,3.2078,2571.1,2570.1,4.70263321]
[1739139122561,2.8,2571.0,2570.1,4.70263321]
[1739139122867,2.8,2571.0,2569.7,4.70263321]
[1739139122868,7.14934711,2571.0,2569.7,4.70263321]
[1739139123067,3.2078,2570.4,2569.7,4.70263321]
[1739139123366,3.2078,2570.4,2569.5,3.2078]
[1739139123572,6.1023,2570.9,2568.9,4.70263321]
[1739139123573,3.2078,2569.8,2568.9,4.70263321]